bitfinex-derivatives/quotes_SOLF0:USTF0_20250516
["timestamp","ask_amount","ask_price","bid_price","bid_amount"]
[1747433587287,69.60252687,168.24,168.17,2.10500638]
[1747433587487,69.60252687,168.24,168.14,63.08]
[1747433587488,69.60252687,168.24,168.18,2.10500638]
[1747433587690,69.60252687,168.24,168.14,63.08]
[1747433587885,71.28842687,168.24,168.15,2.10507901]
[1747433588194,71.28842687,168.24,168.16,2.10507901]
[1747433588393,71.28842687,168.24,168.17,2.10507901]
[1747433588696,6.36252687,168.21,168.11,63.22]
[1747433588897,6.36252687,168.21,167.83,4008.43463995]
[1747433588898,126.36,168.2,168.12,2.10554996]
[1747433589089,5.945,168.16,168.13,8.05124996]
[1747433589288,63.18,168.15,168.14,2.10554996]
[1747433589691,69.1252,168.15,168.12,5.946]
[1747433589996,63.18,168.15,168.13,2.105631]
[1747433590186,63.18,168.15,168.06,65.1178]
[1747433590791,5.9457,168.14,168.11,5.9463]
[1747433590987,63.18,168.15,168.06,65.1178]
[1747433591397,69.1252,168.15,168.07,2.10576162]
[1747433591695,69.1252,168.15,168.08,2.10576162]
[1747433591894,69.1252,168.15,168.11,5.9463]
[1747433592095,69.1252,168.15,168.12,2.10576162]
[1747433592296,5.9455,168.14,168.06,65.1178]
[1747433592496,63.18,168.15,168.08,5.9474]
[1747433592697,63.18,168.15,168.06,1.8978]
[1747433592996,69.54252687,168.15,168.07,2.10564486]
[1747433593189,69.54252687,168.15,168.08,2.10564486]
[1747433593387,69.54252687,168.15,168.03,63.22]
[1747433593590,63.18,168.15,168.04,2.10504399]
[1747433593795,126.58,168.14,168.03,63.22]
[1747433593992,5.9466,168.11,168.07,5.9478]
[1747433594298,63.36,168.1,168.03,63.22]
[1747433594888,63.36,168.1,168.04,2.10496558]
[1747433595090,63.36,168.1,168.05,2.10496558]
[1747433595292,63.36,168.1,168.07,5.9479]
[1747433595496,63.36,168.1,168.08,2.10416063]
[1747433595696,63.36,168.1,168.03,63.22]
[1747433595895,63.36,168.1,168.04,2.10412112]
[1747433596094,63.36,168.1,168.05,2.10412112]
[1747433596296,63.36,168.1,168.06,2.1041098]
[1747433596493,63.36,168.1,168.07,2.1041098]
[1747433596694,63.36,168.1,168.08,2.1041098]
[1747433596990,63.36,168.1,168.03,63.22]
[1747433597195,63.36,168.1,168.04,2.10348819]
[1747433597391,69.3072,168.1,168.06,5.9481]
[1747433597593,63.36,168.1,168.07,2.10348819]
[1747433597793,63.36,168.1,168.03,63.22]
[1747433597991,63.36,168.1,168.04,2.10283945]
[1747433598191,63.36,168.1,168.05,2.10283945]
[1747433598393,63.36,168.1,168.06,2.10283945]
[1747433598598,63.36,168.1,168.07,8.05073945]
[1747433598788,63.36,168.1,168.07,5.9479]
[1747433599994,63.36,168.1,168.03,63.22]
[1747433600197,63.32,168.13,168.05,6.36252687]
[1747433600397,63.32,168.13,168.06,2.10173106]
[1747433600600,63.32,168.13,168.12,5.9462]
[1747433601397,63.3,168.15,168.12,2.10091176]
[1747433601588,63.3,168.15,168.08,6.36252687]
[1747433601793,63.3,168.15,168.09,8.02191049]
[1747433601995,63.3,168.15,168.1,2.10091049]
[1747433602197,63.3,168.15,168.09,5.921]
[1747433602198,63.3,168.15,168.14,5.9455]
[1747433602399,63.3,168.15,168.09,5.921]
[1747433602598,63.3,168.15,168.1,2.10088927]
[1747433602799,63.3,168.15,168.07,63.24]
[1747433603003,63.3,168.15,168.08,2.10109555]
[1747433603200,63.3,168.15,168.09,2.10109555]
[1747433603501,63.3,168.15,168.1,2.10109555]
[1747433603798,69.2452,168.15,168.09,5.9471]
[1747433603999,69.2452,168.15,168.1,2.10108663]
[1747433604196,69.2452,168.15,168.07,63.24]
[1747433604403,5.9456,168.14,168.08,2.10108663]
[1747433604599,63.24,168.13,168.04,63.24]
[1747433604803,63.24,168.13,168.05,2.10123342]
[1747433605003,63.24,168.13,168.06,2.10123342]
[1747433605196,63.24,168.13,168.07,2.10123342]
[1747433605403,63.24,168.13,168.01,69.3238]
[1747433605594,63.24,168.13,168.02,2.10115904]
[1747433605798,63.24,168.13,168.03,2.10115904]
[1747433605799,3.838,168.12,168.03,2.10115904]
[1747433605999,63.16,168.11,168.04,2.10115904]
[1747433606202,63.16,168.11,168.05,2.10115904]
[1747433606408,5.9477,168.08,168.01,67.3154]
[1747433606598,5.9477,168.08,168.02,2.10069226]
[1747433606798,5.9477,168.08,168.03,2.10069226]
[1747433606999,5.9474,168.09,168.05,5.9486]
[1747433607707,5.9477,168.08,168.04,5.9489]
[1747433608006,63.16,168.11,168.05,2.10032099]
[1747433608206,63.16,168.11,168.04,5.9489]
[1747433608404,63.16,168.11,168.05,2.10033782]
[1747433608606,63.16,168.11,168.03,5.9494]
[1747433608907,63.16,168.11,168.04,2.10007403]
[1747433609103,5.9483,168.07,168.03,5.9494]
[1747433609305,63.1,168.07,168.04,2.10008391]
[1747433609506,63.1,168.07,168.01,63.24]
[1747433609704,63.1,168.07,168.02,2.09960219]
[1747433609907,63.1,168.07,168.0,2.09971792]
[1747433610107,63.1,168.07,167.97,1.8891]
[1747433610309,5.9496,168.03,168.0,5.9503]
[1747433610609,1.6879,168.08,167.97,1.8891]
[1747433610803,63.1,168.07,168.04,5.9487]
[1747433611003,63.14,168.07,168.0,63.26]
[1747433611204,63.26,168.09,168.01,2.09860705]
[1747433611406,63.12,168.08,168.02,2.09860705]
[1747433611606,63.12,168.08,168.03,2.09860705]
[1747433611809,63.12,168.08,168.04,2.09860705]
[1747433612007,63.12,168.08,168.0,63.26]
[1747433612315,63.12,168.08,168.01,2.09832495]
[1747433612503,63.12,168.08,168.02,2.09832495]
[1747433612703,63.12,168.08,168.06,5.9482]
[1747433613411,63.12,168.08,168.05,5.9486]
[1747433613911,63.02,168.09,168.03,2.0988715]
[1747433614107,63.02,168.09,168.0,63.26]
[1747433614307,63.02,168.09,168.01,2.09879887]
[1747433614509,63.02,168.09,168.02,2.09879887]
[1747433614709,63.02,168.09,168.03,2.09879887]
[1747433615002,63.02,168.09,168.01,2.09879887]
[1747433615209,63.02,168.09,168.02,2.09879887]
[1747433615413,5.9477,168.08,168.04,5.9488]
[1747433616110,68.9674,168.09,168.03,2.09879887]
[1747433616410,68.9674,168.09,168.01,2.09879887]
[1747433616605,63.02,168.09,168.02,2.09879887]
[1747433616806,63.02,168.09,168.03,2.09879887]
[1747433617009,63.02,168.09,168.01,2.09879887]
[1747433617209,63.02,168.09,168.02,2.09879887]
[1747433617405,63.02,168.09,168.0,63.26]
[1747433617807,63.02,168.09,168.02,5.9496]
[1747433618014,5.9486,168.06,168.02,5.9496]
[1747433618214,62.9,168.05,168.02,5.9496]
[1747433619112,62.9,168.05,168.03,5.9494]
[1747433619512,68.8487,168.05,168.0,63.26]
[1747433619713,68.8487,168.05,168.02,5.9497]
[1747433619916,62.9,168.05,168.02,5.9497]
[1747433620418,62.9,168.05,168.03,5.9493]
[1747433621618,62.9,168.05,168.02,5.9497]
[1747433622216,62.9,168.05,168.04,5.949]
[1747433622418,62.96,168.13,168.01,66.75708358]
[1747433622614,64.66,168.12,167.96,3.7947]
[1747433622809,10.20102683,168.11,167.97,2.09710697]
[1747433623011,10.20102683,168.11,167.98,2.09710697]
[1747433623216,2.0185,168.1,167.97,2.09710697]
[1747433623519,2.0185,168.1,167.99,5.9505]
[1747433623520,62.96,168.09,167.99,5.9505]
[1747433623725,64.6,168.08,167.99,5.9505]
[1747433624218,64.6,168.08,167.98,5.951]
[1747433624419,64.6,168.08,167.95,2.09748362]
[1747433624718,64.6,168.08,167.96,2.09748362]
[1747433624923,64.6,168.08,167.99,5.9505]
[1747433625313,64.6,168.08,167.99,5.9507]
[1747433625514,64.6,168.08,167.96,2.09700394]
[1747433625715,10.20102683,168.07,167.97,2.09700394]
[1747433625922,10.20102683,168.07,167.99,5.9506]
[1747433626216,5.9493,168.04,167.96,2.09700394]
[1747433626413,127.52,168.03,167.95,2.09700394]
[1747433626613,127.52,168.03,167.96,2.09700394]
[1747433626814,127.52,168.03,167.97,2.09700394]
[1747433627014,127.52,168.03,167.95,2.09700394]
[1747433627217,127.52,168.03,167.98,5.9511]
[1747433627515,127.52,168.03,167.93,1.8738]
[1747433627721,127.5,168.02,167.94,2.09718248]
[1747433627910,127.5,168.02,167.95,2.09718248]
[1747433628109,127.5,168.02,167.93,1.8738]
[1747433628110,127.5,168.02,167.96,2.09718248]
[1747433628316,127.5,168.02,167.93,1.8738]
[1747433628523,127.5,168.02,167.94,2.09811908]
[1747433628725,127.5,168.02,167.97,5.9513]
[1747433629318,5.9503,168.01,167.97,5.9513]
[1747433629623,64.48,168.03,167.93,66.3538]
[1747433629821,64.48,168.03,167.94,2.09893492]
[1747433630023,64.48,168.03,167.95,65.07893492]
[1747433630217,64.48,168.03,167.96,3.98603492]
[1747433630423,64.48,168.03,167.97,2.09893492]
[1747433630629,64.48,168.03,167.98,2.09893492]
[1747433630920,64.42,168.06,168.04,5.949]
[1747433631117,62.98,168.08,168.0,2.09893492]
[1747433631322,127.36,168.08,168.01,2.09893492]
[1747433631518,127.36,168.08,168.02,2.10035445]
[1747433631718,133.3077,168.08,167.99,62.98]
[1747433631922,127.36,168.08,168.03,5.9492]
[1747433632413,127.36,168.08,167.99,62.98]
[1747433632625,127.36,168.08,168.0,2.1018922]
[1747433632818,5.9484,168.06,168.03,5.9493]
[1747433633125,127.36,168.08,167.98,2.10202682]
[1747433633426,127.36,168.08,168.03,5.9492]
[1747433633925,5.9481,168.07,168.03,5.9492]
[1747433634818,5.9484,168.06,168.03,5.9492]
[1747433636427,5.9488,168.05,168.03,5.9492]
[1747433637226,5.9485,168.06,168.03,5.9492]
[1747433637525,127.36,168.08,168.02,5.9496]
[1747433637825,133.73418334,168.08,167.97,1.8807]
[1747433638028,1.9115,168.07,167.98,2.10492813]
[1747433638324,5.9492,168.04,167.99,2.10492813]
[1747433638530,64.02,168.03,168.0,2.1049955]
[1747433638718,64.02,168.03,167.93,66.7432]
[1747433638921,64.02,168.03,167.94,2.10510547]
[1747433639126,64.02,168.03,167.95,2.10510547]
[1747433639127,65.7094,168.03,167.95,2.10510547]
[1747433639426,5.951,167.99,167.96,8.05680547]
[1747433639623,64.06,167.98,167.97,2.10510547]
[1747433640630,64.06,167.98,167.96,5.9519]
[1747433640930,64.06,167.98,167.97,8.05630633]
[1747433641226,63.98,168.01,167.97,2.10480633]
[1747433641426,63.98,168.01,167.98,2.10480633]
[1747433641727,63.98,168.01,167.92,6.37418334]
[1747433642026,63.98,168.01,168.0,5.9505]
[1747433642527,63.98,168.01,167.99,5.9506]
[1747433643028,63.98,168.01,168.0,5.9505]
[1747433643725,63.98,168.01,167.93,2.10425227]
[1747433643927,63.98,168.01,167.94,2.10425227]
[1747433644235,1.6894,168.09,167.95,8.47843561]
[1747433644422,62.98,168.08,167.98,6.37418334]
[1747433644623,62.98,168.08,167.99,65.08425227]
[1747433644827,5.9462,168.12,168.01,6.37418334]
[1747433645127,64.6,168.11,168.02,2.10425227]
[1747433645328,64.6,168.11,168.03,2.10425227]
[1747433645531,64.6,168.11,168.04,2.10425227]
[1747433645731,64.6,168.11,168.05,2.10425227]
[1747433646034,5.9476,168.09,167.99,64.54]
[1747433646227,64.6,168.11,168.0,2.1037248]
[1747433646425,5.9474,168.09,168.04,5.9487]
[1747433646625,5.9474,168.09,167.99,64.54]
[1747433646824,5.9474,168.09,168.0,2.10468564]
[1747433647124,5.9474,168.09,168.01,2.10468564]
[1747433647327,5.947,168.1,168.02,2.10468564]
[1747433647631,64.6,168.11,168.03,2.10468564]
[1747433647833,64.6,168.11,168.06,5.948]
[1747433648023,70.5467,168.11,168.07,2.10468564]
[1747433648223,70.5467,168.11,168.06,5.948]
[1747433648422,65.68976799,168.1,168.07,2.10575713]
[1747433648625,1.18983877,168.09,168.08,2.10637563]
[1747433649022,1.18983877,168.09,168.03,64.54]
[1747433649223,1.18983877,168.09,168.04,2.10639324]
[1747433649424,1.18983877,168.09,168.06,5.948]
[1747433649621,1.18983877,168.09,168.07,2.10639324]
[1747433649829,1.18983877,168.09,168.06,5.948]
[1747433650128,1.18983877,168.09,168.07,2.10704623]
[1747433650328,1.18983877,168.09,168.05,5.9487]
[1747433650531,1.18983877,168.09,168.06,2.10711902]
[1747433650726,1.18983877,168.09,168.07,2.10711902]
[1747433651030,1.18983877,168.09,168.0,64.54]
[1747433651233,1.18983877,168.09,168.01,2.10719178]
[1747433651532,65.72983877,168.09,168.02,2.10719178]
[1747433651723,65.72983877,168.09,168.03,2.10719178]
[1747433651923,5.9478,168.08,168.04,2.10719178]
[1747433652127,64.54,168.09,168.05,2.10719178]
[1747433652326,64.54,168.07,167.99,64.54]
[1747433652523,64.54,168.07,168.05,5.9484]
[1747433652724,64.54,168.07,168.06,2.10763501]
[1747433653725,64.54,168.09,168.06,2.10763501]
[1747433654025,64.52,168.11,168.07,2.10758911]
[1747433654425,64.52,168.11,168.03,68.489]
[1747433654620,64.52,168.11,168.08,5.9474]
[1747433654826,64.52,168.11,167.99,64.54]
[1747433655031,64.52,168.11,168.04,2.10769215]
[1747433655431,5.9481,168.07,168.04,2.10769215]
[1747433655632,64.46,168.06,168.03,5.9492]
[1747433655831,64.46,168.06,168.04,2.10757081]
[1747433656132,64.46,168.06,168.03,5.9492]
[1747433656332,64.46,168.06,168.04,5.949]
[1747433656729,64.46,168.06,168.05,2.10757694]
[1747433656931,64.46,168.06,168.04,5.949]
[1747433657432,64.46,168.06,168.05,2.10756638]
[1747433657731,64.46,168.06,168.04,5.949]
[1747433658031,64.46,168.06,167.99,64.54]
[1747433658231,64.46,168.06,168.0,2.10770905]
[1747433658433,64.46,168.06,168.04,5.9488]
[1747433658732,64.46,168.06,168.05,2.10771057]
[1747433658933,64.46,168.06,168.05,8.05641057]
[1747433659327,64.36,168.09,168.05,2.10771057]
[1747433659631,64.36,168.09,168.06,8.05601057]
[1747433659829,64.36,168.09,168.07,2.10760122]
[1747433660030,64.36,168.09,168.06,5.9483]
[1747433660230,64.36,168.09,168.07,2.10757536]
[1747433660428,64.36,168.09,168.06,5.9483]
[1747433660626,64.36,168.09,168.07,8.05532939]
[1747433660827,64.36,168.09,168.07,5.9479]
[1747433661434,64.36,168.09,168.0,64.38]
[1747433661730,64.36,168.09,168.01,2.10790837]
[1747433661935,64.36,168.09,168.02,2.10790837]
[1747433662122,64.36,168.09,168.03,2.10790837]
[1747433662327,64.36,168.09,168.04,2.10790837]
[1747433662638,64.36,168.09,167.99,64.54]
[1747433662834,64.36,168.09,168.0,2.10831877]
[1747433663037,5.9493,168.04,168.01,2.10831877]
[1747433663334,64.24,168.03,168.02,2.10831877]
[1747433663530,70.1894,168.03,168.02,2.10831877]
[1747433663733,64.24,168.03,167.96,66.5902]
[1747433663933,64.24,168.03,167.97,2.10875826]
[1747433664127,64.24,168.03,167.98,2.10875826]
[1747433664330,64.24,168.03,167.99,2.10875826]
[1747433664534,64.24,168.03,168.0,2.10875826]
[1747433664832,70.1896,168.03,168.01,2.10875826]
[1747433665034,64.24,168.03,167.96,66.5902]
[1747433665336,5.95,168.02,167.98,5.9509]
[1747433665542,5.95,168.02,167.99,2.10854599]
[1747433665834,5.95,168.02,168.0,2.10854599]
[1747433666135,5.95,168.02,168.01,2.10854599]
[1747433666336,5.95,168.02,167.96,66.5902]
[1747433666534,70.1895,168.03,167.99,5.9506]
[1747433666735,70.1895,168.03,168.0,2.10842762]
[1747433666930,70.1895,168.03,168.01,2.10842762]
[1747433667242,5.9498,168.02,167.99,5.9506]
[1747433667535,5.9498,168.02,168.0,2.10849017]
[1747433667738,5.9498,168.02,168.01,2.10849017]
[1747433668833,5.9498,168.02,168.01,2.10860761]
[1747433669633,5.9503,168.01,167.96,2.0502]
[1747433669834,5.9503,168.01,167.97,2.10880542]
[1747433670038,5.9503,168.01,167.98,8.05990542]
[1747433670235,5.9503,168.01,167.99,2.10880542]
[1747433670536,5.9503,168.01,168.0,2.10880542]
[1747433670836,11.8939,168.11,168.0,2.10880542]
[1747433671038,128.44,168.1,168.01,2.10880542]
[1747433671235,128.44,168.1,167.96,2.0502]
[1747433671433,5.9491,168.04,168.01,5.9499]
[1747433671639,69.8091,168.04,168.01,5.9499]
[1747433671934,63.86,168.04,168.02,2.10888553]
[1747433672141,63.84,168.04,167.96,2.0502]
[1747433672333,63.84,168.04,167.97,66.64890616]
[1747433672533,63.84,168.04,168.03,5.9494]
[1747433672837,63.84,168.04,168.03,8.05830616]
[1747433675532,63.84,168.04,168.03,2.10890616]
[1747433677738,63.84,168.04,168.03,2.10963123]
[1747433680243,69.7891,168.04,168.03,2.10963123]
[1747433680535,63.84,168.04,167.99,5.9506]
[1747433680746,5.9496,168.03,168.0,2.10980583]
[1747433680937,5.9496,168.03,168.01,2.10980583]
[1747433681143,5.9496,168.03,168.02,2.10980583]
[1747433681344,5.9496,168.03,168.02,2.10977065]
[1747433683142,127.46,168.04,168.02,2.10977065]
[1747433683342,127.46,168.04,168.03,2.10977065]
[1747433683553,63.84,168.04,168.03,2.10977065]
[1747433683848,63.84,168.04,168.03,8.05917065]
[1747433684445,63.84,168.04,168.03,2.10977065]
[1747433684646,63.62,168.1,168.03,2.10977065]
[1747433684835,63.3,168.09,168.05,5.9487]
[1747433685035,63.3,168.09,168.06,2.10977065]
[1747433685234,63.3,168.09,168.0,3.7917]
[1747433685439,5.948,168.07,168.04,5.949]
[1747433685737,5.948,168.07,168.05,2.10978723]
[1747433685933,5.948,168.07,168.06,2.10978723]
[1747433686549,5.9478,168.08,168.06,2.10978723]
[1747433686746,63.3,168.09,168.04,5.949]
[1747433687045,5.9483,168.06,168.05,2.1098534]
[1747433687247,63.3,168.09,168.0,3.7917]
[1747433687443,63.3,168.09,168.01,2.11045907]
[1747433687645,5.9487,168.05,168.03,5.9494]
[1747433687835,69.1287,168.05,168.04,2.11045907]
[1747433688550,69.1287,168.05,168.04,2.11080703]
[1747433688841,63.18,168.05,167.97,64.54]
[1747433689047,63.18,168.05,167.98,2.10916197]
[1747433689241,63.18,168.05,167.99,2.10916197]
[1747433689441,63.18,168.05,168.0,2.10916197]
[1747433689642,63.18,168.05,168.01,2.10916197]
[1747433689836,63.18,168.05,168.02,2.10916197]
[1747433690042,63.18,168.05,168.0,5.9504]
[1747433690347,5.9498,168.02,168.01,2.10919514]
[1747433692749,5.9496,168.03,168.01,8.05929514]
[1747433692949,63.18,168.05,168.02,2.10919514]
[1747433693137,63.18,168.05,167.97,64.54]
[1747433693342,5.9492,168.04,168.01,5.9499]
[1747433693545,5.9492,168.04,168.02,2.10989537]
[1747433693745,5.9492,168.04,168.03,2.10989537]
[1747433694552,5.9492,168.04,168.03,2.11028334]
[1747433697650,63.18,168.05,168.03,2.11124666]
[1747433697651,69.1288,168.05,168.03,2.11124666]
[1747433697852,63.18,168.05,168.04,2.11124666]
[1747433698052,69.1287,168.05,168.04,2.11124666]
[1747433699054,68.6687,168.05,168.04,2.11124666]
[1747433699356,62.72,168.05,168.04,2.11152891]
[1747433699956,68.6687,168.05,168.04,2.11152891]
[1747433700958,62.72,168.05,167.97,64.54]
[1747433701147,62.72,168.05,167.98,2.1116733]
[1747433701351,62.72,168.05,167.99,2.1116733]
[1747433701558,5.95,168.02,168.0,2.1116733]
[1747433701859,62.72,168.05,168.01,2.1116733]
[1747433702051,5.9493,168.04,168.02,2.1116733]
[1747433702251,62.72,168.05,168.03,2.1116733]
[1747433702454,5.9496,168.03,167.97,64.54]
[1747433702754,5.9496,168.03,167.98,2.1116986]
[1747433702953,5.9498,168.02,168.0,5.9502]
[1747433703161,5.9498,168.02,168.01,2.1116986]
[1747433704057,5.9498,168.02,168.01,2.11183079]
[1747433704863,5.9495,168.03,168.01,2.11183079]
[1747433705056,5.9495,168.03,168.02,2.11183079]
[1747433705851,6.37385846,168.04,167.93,63.62]
[1747433706053,6.37385846,168.04,167.9,6.37385846]
[1747433706054,63.62,168.03,167.9,6.37385846]
[1747433706257,63.62,168.03,167.9,69.99385846]
[1747433706458,5.9521,167.96,167.9,69.99385846]
[1747433706761,62.72,167.97,167.9,69.99385846]
[1747433707556,62.72,167.97,167.91,1.9391]
[1747433707959,62.72,167.97,167.96,5.9519]
[1747433708164,62.64,168.0,167.91,1.9391]
[1747433708363,62.64,168.01,167.91,64.5791]
[1747433708563,62.62,168.01,167.91,64.5791]
[1747433709367,5.9506,168.0,167.96,5.9517]
[1747433709861,5.9506,168.0,167.91,1.9391]
[1747433710063,62.62,168.01,167.91,1.9391]
[1747433710666,68.5702,168.01,167.91,1.9391]
[1747433711161,62.62,168.01,167.91,1.9391]
[1747433711363,62.62,168.01,167.98,5.951]
[1747433711563,3.5799,168.05,167.91,1.9391]
[1747433711764,5.9495,168.03,167.99,5.9505]
[1747433711966,125.18,168.04,167.99,5.9505]
[1747433712768,125.18,168.04,167.98,5.9509]
[1747433713371,5.9499,168.02,167.98,5.9509]
[1747433713665,5.9499,168.02,167.99,5.9507]
[1747433713869,125.18,168.04,167.92,11.9066]
[1747433714170,5.9495,168.03,167.92,11.9066]
[1747433714670,5.9498,168.02,167.92,11.9066]
[1747433714968,5.9498,168.02,167.99,5.9506]
[1747433715171,125.18,168.04,167.92,11.9066]
[1747433715475,5.9496,168.03,168.0,5.9505]
[1747433715870,62.54,168.02,167.94,62.66]
[1747433716171,62.54,168.03,167.95,3.9738]
[1747433716470,62.54,168.03,167.95,15.8781]
[1747433716769,62.54,168.03,168.02,5.9498]
[1747433718269,62.66,168.04,168.02,5.9498]
[1747433718471,62.66,168.04,168.03,5.9494]
[1747433719672,62.66,168.04,168.02,5.9496]
[1747433720273,62.66,168.04,168.03,5.9494]
[1747433720468,8.32065846,168.1,167.95,3.9738]
[1747433720663,125.16,168.09,167.98,62.64]
[1747433720867,125.16,168.09,167.99,1.88]
[1747433721360,62.52,168.08,167.99,1.88]
[1747433721973,68.4677,168.08,167.99,1.88]
[1747433722169,62.64,168.09,167.99,1.88]
[1747433722375,62.52,168.07,167.99,1.88]
[1747433722677,62.52,168.07,168.05,5.9487]
[1747433723975,62.64,168.09,168.06,5.9483]
[1747433724169,62.52,168.08,167.99,8.25385846]
[1747433725074,6.37385846,168.07,167.95,3.9738]
[1747433725275,5.9497,168.03,167.99,5.9505]
[1747433725468,62.52,168.03,167.99,5.9505]
[1747433726077,68.4694,168.03,168.0,5.9505]
[1747433726277,62.52,168.03,167.95,3.9738]
[1747433727684,62.52,168.05,167.96,6.37385846]
[1747433727873,62.52,168.05,168.02,5.9495]
[1747433728070,62.52,168.05,167.98,62.64]
[1747433728767,62.64,168.07,167.98,62.64]
[1747433728971,62.52,168.06,167.98,62.64]
[1747433729178,62.52,168.06,168.04,5.9488]
[1747433729570,62.52,168.06,168.03,5.9492]
[1747433729772,62.52,168.06,167.98,62.64]
[1747433730079,62.52,168.06,168.04,5.9488]
[1747433730378,62.52,168.06,167.98,62.64]
[1747433730585,62.52,168.06,167.98,69.01385846]
[1747433731178,62.52,168.06,168.05,5.9487]
[1747433731379,62.52,168.09,167.98,69.01385846]
[1747433731575,125.16,168.1,167.98,69.01385846]
[1747433731776,62.64,168.1,168.01,6.37385846]
[1747433732077,62.52,168.11,168.02,68.5953]
[1747433733184,576.82,168.13,168.02,68.5953]
[1747433733379,62.52,168.1,168.08,5.9475]
[1747433735385,62.52,168.1,168.09,5.9473]
[1747433735580,6.37385846,168.16,168.02,68.5953]
[1747433735886,62.64,168.14,168.04,6.37385846]
[1747433736184,62.64,168.14,168.11,5.9463]
[1747433736374,62.64,168.14,168.06,62.64]
[1747433736580,62.5,168.15,168.06,62.64]
[1747433736784,5.9442,168.18,168.14,5.9455]
[1747433736982,62.5,168.17,168.14,5.9455]
[1747433737182,62.5,168.17,168.08,5.7474]
[1747433737382,68.4446,168.17,168.08,5.7474]
[1747433737780,5.9455,168.14,168.1,5.9467]
[1747433738182,62.5,168.17,168.08,5.7474]
[1747433738489,5.9449,168.16,168.08,5.7474]
[1747433738686,62.5,168.17,168.08,5.7474]
[1747433738986,62.5,168.17,168.14,5.9452]
[1747433739185,62.5,168.17,168.1,62.48]
[1747433741691,62.5,168.17,168.15,5.9449]
[1747433743678,62.48,168.19,168.18,5.9441]
[1747433743882,62.48,168.19,168.1,68.85385846]
[1747433744289,68.4239,168.19,168.15,5.9451]
[1747433744590,62.48,168.19,168.1,62.48]
[1747433744791,68.85385846,168.19,168.1,62.48]
[1747433745290,5.9449,168.16,168.08,5.7474]
[1747433745491,62.46,168.15,168.08,5.7474]
[1747433745694,68.4054,168.15,168.11,5.9464]
[1747433746085,68.4054,168.15,168.08,5.7474]
[1747433746287,62.46,168.15,168.12,5.9459]
[1747433746590,62.46,168.15,168.08,5.7474]
[1747433747386,62.46,168.15,168.12,5.9461]
[1747433748391,68.4052,168.15,168.11,5.9464]
[1747433748582,62.46,168.15,168.11,5.9464]
[1747433748987,62.46,168.15,168.08,3.8598]
[1747433749185,62.46,168.15,168.07,62.46]
[1747433749593,5.9458,168.14,168.11,5.9466]
[1747433750089,62.46,168.15,168.07,62.46]
[1747433750293,5.9456,168.14,168.11,5.9463]
[1747433750690,68.4052,168.15,168.12,5.9462]
[1747433751701,5.9456,168.14,168.12,5.9462]
[1747433751905,62.46,168.15,168.11,5.9465]
[1747433752097,62.46,168.15,168.07,62.46]
[1747433752298,5.9461,168.13,168.07,62.46]
[1747433752498,62.46,168.13,168.04,64.4031]
[1747433752699,62.46,168.13,168.04,62.46]
[1747433752996,5.9471,168.1,168.04,62.46]
[1747433753198,62.46,168.09,168.04,62.46]
[1747433753393,68.4074,168.09,168.06,5.9482]
[1747433753597,68.4074,168.09,168.03,3.955]